bitfinex/quotes_SOLUSD_20250520
["timestamp","ask_amount","ask_price","bid_price","bid_amount"]
[1747759345905,15.04845602,166.13,166.1,37.52]
[1747759347820,21.06783843,166.13,166.1,37.52]
[1747759348038,38.46842509,166.13,166.1,37.52]
[1747759348216,17.40058666,166.11,166.08,18.04]
[1747759348529,81.26166253,166.13,166.08,18.04]
[1747759348530,17.40058666,166.12,166.08,18.04]
[1747759348724,98.66224919,166.13,166.08,18.04]
[1747759349900,17.40058666,166.11,166.05,21.0551]
[1747759350205,17.40058666,166.11,166.06,18.04]
[1747759350593,17.40058666,166.12,166.06,18.04]
[1747759351025,17.40058666,166.11,166.06,18.04]
[1747759352023,21.07164358,166.1,166.06,18.04]
[1747759352322,68.57457822,166.1,166.06,18.04]
[1747759352721,51.17399156,166.1,166.06,18.04]
[1747759354134,45.15352197,166.1,166.06,18.04]
[1747759354304,42.65352197,166.1,166.06,18.04]
[1747759355227,12.55117399,166.1,166.06,18.04]
[1747759355436,12.55117399,166.1,166.07,1.6284]
[1747759356537,30.09872381,166.12,166.07,1.6284]
[1747759358733,30.09872381,166.12,166.06,5.1984]
[1747759359814,30.09872381,166.12,166.07,18.04]
[1747759360845,30.09872381,166.12,166.07,100.54]
[1747759361225,30.09872381,166.12,166.08,18.64964886]
[1747759361565,15.04755025,166.14,166.08,18.64964886]
[1747759361724,15.04755025,166.14,166.08,20.30234886]
[1747759363140,51.14989025,166.18,166.08,20.30234886]
[1747759364036,51.14989025,166.18,166.09,0.14216157]
[1747759365220,45.13231895,166.18,166.09,0.14216157]
[1747759365430,15.04392827,166.18,166.13,6.5332]
[1747759365742,15.04392827,166.18,166.14,57.78274886]
[1747759366647,51.13397099,166.23,166.14,57.78274886]
[1747759366947,51.13397099,166.23,166.14,140.28274886]
[1747759368342,17.40058666,166.22,166.15,26.0]
[1747759368547,17.40058666,166.21,166.14,120.0]
[1747759369547,17.40058666,166.22,166.14,120.0]
[1747759369843,81.21277746,166.23,166.14,120.0]
[1747759369844,81.21277746,166.23,166.15,18.64964886]
[1747759370951,81.21277746,166.23,166.19,26.0]
[1747759371248,81.21277746,166.23,166.19,44.04]
[1747759372851,75.19701617,166.23,166.19,44.04]
[1747759373152,15.03940323,166.23,166.19,44.04]
[1747759373356,15.03940323,166.23,166.2,19.46]
[1747759375128,15.03940323,166.23,166.19,26.0]
[1747759375328,15.03940323,166.23,166.2,18.04]
[1747759378759,15.03940323,166.23,166.2,44.04]
[1747759379061,15.03940323,166.23,166.2,126.54]
[1747759379381,15.03940323,166.23,166.21,18.64964886]
[1747759379653,30.07167554,166.27,166.21,18.64964886]
[1747759379852,30.07167554,166.27,166.21,101.14964886]
[1747759380242,21.04883328,166.28,166.25,18.64964886]
[1747759380456,21.04883328,166.28,166.26,18.04]
[1747759381349,6.01395236,166.28,166.26,18.04]
[1747759381762,15.0329534,166.31,166.26,18.04]
[1747759385140,15.0329534,166.31,166.23,9.29368149]
[1747759385141,1.613,166.28,166.1,18.08]
[1747759385360,17.40058666,166.16,166.14,30.0]
[1747759385856,17.40058666,166.16,166.11,26.0]
[1747759386153,21.06530242,166.15,166.11,26.0]
[1747759386362,38.46588908,166.15,166.12,30.0]
[1747759386657,17.40058666,166.13,166.12,30.0]
[1747759386832,17.40058666,166.13,166.06,19.42]
[1747759387038,17.40058666,166.1,166.06,19.42]
[1747759387233,17.40058666,166.1,166.07,30.0]
[1747759388041,17.40058666,166.11,166.07,30.0]
[1747759388246,21.06783843,166.13,166.07,30.0]
[1747759388454,21.06783843,166.13,166.06,19.42]
[1747759388835,21.06783843,166.13,166.08,26.0]
[1747759389051,38.46842509,166.13,166.08,26.0]
[1747759390364,6.0190201,166.14,166.08,26.0]
[1747759390564,38.46715701,166.14,166.08,26.0]
[1747759390771,17.40058666,166.1,166.07,19.44]
[1747759390959,17.40058666,166.11,166.07,19.44]
[1747759391557,17.40058666,166.12,166.07,19.44]
[1747759392266,6.02010715,166.11,166.07,19.44]
[1747759392566,23.42069381,166.11,166.07,19.44]
[1747759393260,38.4709617,166.11,166.07,19.44]
[1747759393965,21.07037504,166.11,166.07,19.44]
[1747759394259,21.06657035,166.14,166.07,19.44]
[1747759394470,17.40058666,166.12,166.07,19.44]
[1747759395769,6.02010715,166.11,166.07,19.44]
[1747759397864,17.40058666,166.14,166.07,19.44]
[1747759398746,17.40058666,166.13,166.07,19.44]
[1747759399544,21.06576225,166.15,166.07,19.44]
[1747759399545,38.46634891,166.15,166.07,19.44]
[1747759399946,17.40058666,166.14,166.07,19.44]
[1747759401964,21.06783843,166.13,166.07,19.44]
[1747759402168,38.46842509,166.13,166.07,19.44]
[1747759403466,17.40058666,166.11,166.07,19.44]
[1747759403670,17.40058666,166.1,166.07,19.44]
[1747759403876,17.40058666,166.08,166.01,82.5]
[1747759404075,17.40058666,166.05,166.02,19.44]
[1747759404290,17.40058666,166.04,166.02,19.44]
[1747759404755,21.07671925,166.06,166.02,19.44]
[1747759407883,15.05479947,166.06,166.02,19.44]
[1747759408776,32.45538613,166.06,166.02,19.44]
[1747759408984,17.40058666,166.05,166.02,19.44]
[1747759409147,32.45538613,166.06,166.02,19.44]
[1747759409981,38.47730591,166.06,166.02,19.44]
[1747759410272,21.07671925,166.06,166.02,19.44]
[1747759410450,17.40058666,166.05,166.0,26.0]
[1747759410649,17.40058666,166.05,166.0,63.54]
[1747759411559,21.079258,166.04,166.0,63.54]
[1747759412160,21.079258,166.04,166.0,26.0]
[1747759412374,21.079258,166.04,166.01,37.54]
[1747759413683,17.40058666,166.06,166.01,37.54]
[1747759414281,17.40058666,166.04,166.0,26.0]
[1747759414479,17.40058666,166.01,165.92,108.90374886]
[1747759414782,17.40058666,166.0,165.92,7.7541]
[1747759414984,17.40058666,165.93,165.9,30.0]
[1747759415179,17.40058666,165.91,165.9,30.0]
[1747759415494,17.40058666,165.91,165.87,8.59639783]
[1747759415664,17.40058666,165.89,165.87,8.59639783]
[1747759415985,17.40058666,165.9,165.83,19.48]
[1747759416162,43.40058666,165.91,165.84,30.0]
[1747759416362,43.40058666,165.91,165.83,37.54]
[1747759417575,6.02772754,165.9,165.83,37.54]
[1747759418084,17.40058666,165.89,165.83,19.48]
[1747759418266,17.40058666,165.88,165.83,19.48]
[1747759418665,17.40058666,165.89,165.83,19.48]
[1747759419074,17.40058666,165.87,165.83,19.48]
[1747759419677,6.02918123,165.86,165.83,19.48]
[1747759420493,27.90278088,165.85,165.83,19.48]
[1747759421003,27.90278088,165.85,165.79,18.06]
[1747759421667,6.02990834,165.84,165.79,18.06]
[1747759422080,21.1046792,165.84,165.77,244.8]
[1747759422291,27.90278088,165.83,165.78,18.06]
[1747759422693,53.90278088,165.81,165.77,244.8]
[1747759422994,53.90278088,165.81,165.77,19.5]
[1747759423164,26.0,165.81,165.77,19.5]
[1747759423598,6.03136308,165.8,165.77,19.5]
[1747759423764,33.93414396,165.8,165.77,19.5]
[1747759423965,6.03136308,165.8,165.77,19.5]
[1747759424437,33.93414396,165.8,165.77,19.5]
[1747759424684,27.90278088,165.78,165.74,18.06]
[1747759425485,27.90278088,165.79,165.74,18.06]
[1747759425678,6.03209072,165.78,165.72,37.56]
[1747759425983,6.03209072,165.78,165.72,19.5]
[1747759426183,6.03209072,165.78,165.72,37.56]
[1747759426573,75.0150984,165.78,165.72,37.56]
[1747759427177,27.90278088,165.77,165.72,37.56]
[1747759427490,27.90278088,165.76,165.72,19.5]
[1747759427988,6.0331825,165.75,165.72,19.5]
[1747759429588,5.87401568,165.75,165.72,19.5]
[1747759429801,21.1154116,165.76,165.72,19.5]
[1747759430516,6.03281853,165.76,165.72,19.5]
[1747759431816,6.0324546,165.77,165.72,19.5]
[1747759434393,21.11359111,165.77,165.72,19.5]
[1747759434694,21.11359111,165.77,165.72,37.58]
[1747759436002,49.01637199,165.77,165.72,37.58]
[1747759436800,27.90278088,165.76,165.72,37.58]
[1747759437417,49.01637199,165.77,165.72,37.58]
[1747759437598,21.11359111,165.77,165.72,37.58]
[1747759439023,49.01637199,165.77,165.72,37.58]
[1747759439433,21.11359111,165.77,165.72,37.58]
[1747759439722,27.90278088,165.75,165.68,19.48]
[1747759439913,27.90278088,165.74,165.68,19.48]
[1747759440320,26.0,165.72,165.68,19.48]
[1747759440625,21.12123588,165.71,165.68,19.48]
[1747759441003,21.12123588,165.71,165.67,18.08]
[1747759441228,21.12123588,165.71,165.64,21.0745]
[1747759441229,27.90278088,165.7,165.64,21.0745]
[1747759441408,27.90278088,165.7,165.65,18.08]
[1747759441725,38.52891203,165.71,165.65,18.08]
[1747759443119,21.0546435,165.71,165.65,18.08]
[1747759443314,38.52891203,165.71,165.65,18.08]
[1747759444127,26.0,165.68,165.65,18.08]
[1747759444303,26.0,165.68,165.64,19.48]
[1747759444504,43.47426853,165.68,165.64,19.48]
[1747759444839,26.0,165.68,165.64,19.48]
[1747759445930,6.03609585,165.67,165.64,19.48]
[1747759446711,21.12633548,165.67,165.64,19.48]
[1747759446912,38.60060401,165.67,165.64,19.48]
[1747759447111,6.03609585,165.67,165.64,19.48]
[1747759447329,6.03391057,165.73,165.65,18.64964886]
[1747759447515,6.03391057,165.73,165.67,18.64964886]
[1747759448217,6.03391057,165.73,165.67,22.87490866]
[1747759449038,6.03391057,165.73,165.67,18.64964886]
[1747759449839,6.03391057,165.73,165.67,22.87484487]
[1747759450015,6.0331825,165.75,165.68,1.6375]
[1747759450204,6.0331825,165.75,165.68,5.8623297]
[1747759450838,6.0331825,165.75,165.68,1.6375]
[1747759451044,21.11613875,165.75,165.69,18.64964886]
[1747759451334,21.11613875,165.75,165.7,19.48]
[1747759452842,6.0331825,165.75,165.7,19.48]
[1747759454235,21.11486486,165.76,165.7,19.48]
[1747759454925,6.03281853,165.76,165.71,18.64964886]
[1747759455238,6.03281853,165.76,165.72,18.1]
[1747759456429,17.47426853,165.77,165.72,44.1]
[1747759457238,17.47426853,165.76,165.72,44.1]
[1747759457532,17.47426853,165.75,165.72,26.0]
[1747759457912,17.47426853,165.75,165.69,19.48]
[1747759458118,17.47426853,165.75,165.69,37.56]
[1747759458319,82.16195095,165.81,165.69,37.56]
[1747759458320,17.47426853,165.74,165.7,26.0]
[1747759458518,17.47426853,165.74,165.71,26.0]
[1747759458834,17.47426853,165.75,165.7,26.0]
[1747759460032,21.1174128,165.74,165.7,26.0]
[1747759467319,17.47426853,165.71,165.64,1.6441]
[1747759467520,17.47426853,165.7,165.65,37.56]
[1747759467747,17.47426853,165.69,165.65,37.56]
[1747759467929,17.47426853,165.69,165.65,19.48]
[1747759468943,17.47426853,165.68,165.65,19.48]
[1747759469243,6.03609585,165.67,165.65,19.48]
[1747759469433,23.51036438,165.67,165.65,19.48]
[1747759469831,6.03609585,165.67,165.65,19.48]
[1747759470024,38.60060401,165.67,165.6,246.7914]
[1747759470346,38.60060401,165.67,165.6,20.98480761]
[1747759470549,38.60060401,165.67,165.63,26.0]
[1747759471240,38.60060401,165.67,165.6,19.48]
[1747759471547,38.60060401,165.67,165.6,63.58]
[1747759474926,6.03609585,165.67,165.64,26.0]
[1747759475949,21.12378538,165.69,165.64,26.0]
[1747759477029,17.47426853,165.69,165.64,26.0]
[1747759478431,6.03573153,165.68,165.64,26.0]
[1747759480450,21.12381253,165.69,165.64,26.0]
[1747759484554,6.03536725,165.69,165.64,26.0]
[1747759485240,6.03463882,165.71,165.68,26.0]
[1747759486139,6.03391057,165.73,165.68,26.0]
[1747759486560,6.03391057,165.73,165.69,26.0]
[1747759487851,6.03354651,165.74,165.69,26.0]
[1747759491074,6.6484,165.8,165.73,26.0]
[1747759491372,21.1092699,165.81,165.73,44.1]
[1747759491542,21.1092699,165.81,165.73,45.6249]
[1747759491741,21.1092699,165.81,165.74,18.64964886]
[1747759492050,23.50526786,165.81,165.74,18.64964886]
[1747759492245,6.03099933,165.81,165.74,18.64964886]
[1747759492846,21.10849767,165.81,165.74,18.64964886]
[1747759493960,21.10849767,165.81,165.74,24.68794886]
[1747759494139,21.10849767,165.81,165.77,26.0]
[1747759494340,6.03099933,165.81,165.77,26.0]
[1747759495275,15.07533004,165.84,165.77,26.0]
[1747759495449,15.07533004,165.84,165.78,19.48]
[1747759495641,15.07533004,165.84,165.79,18.08]
[1747759496339,21.10523838,165.84,165.79,18.08]
[1747759496759,21.10523838,165.84,165.8,26.0]
[1747759498269,15.07533004,165.84,165.8,26.0]
[1747759499856,6.02918123,165.86,165.8,26.0]
[1747759500270,21.10213432,165.86,165.8,26.0]
[1747759500787,6.0284543,165.88,165.84,26.0]
[1747759500949,6.0284543,165.88,165.87,26.0]
[1747759501440,15.0681234,165.92,165.87,26.0]
[1747759501670,6.02663773,165.93,165.88,26.0]
[1747759502007,6.02663773,165.93,165.89,18.64964886]
[1747759502755,6.02518527,165.97,165.92,26.0]
[1747759502962,6.02518527,165.97,165.94,26.0]
[1747759503471,38.56171379,165.98,165.94,26.0]
[1747759503967,21.08744526,165.98,165.94,26.0]
[1747759504675,38.56171379,165.98,165.94,26.0]
[1747759505186,17.47426853,165.97,165.94,26.0]
[1747759505389,17.47426853,165.95,165.88,1.5187]
[1747759505596,21.09196094,165.94,165.91,18.08]
[1747759506875,30.11706064,166.02,165.93,26.0]
[1747759507054,6.02373351,166.01,165.94,18.64964886]
[1747759507263,15.06096943,166.0,165.94,26.0]
[1747759507471,15.06096943,166.0,165.97,26.0]
[1747759507663,15.06096943,166.0,165.97,44.08]
[1747759511168,17.47426853,165.98,165.96,19.46]
[1747759511483,17.47426853,165.97,165.93,18.08]
[1747759511696,17.47426853,165.98,165.94,26.0]
[1747759511991,15.06096943,166.0,165.94,26.0]
[1747759512274,15.06096943,166.0,165.96,26.0]
[1747759512446,32.53523796,166.0,165.96,26.0]
[1747759512652,38.55933434,166.0,165.93,36.72964886]
[1747759512852,38.55933434,166.0,165.94,26.0]
[1747759513679,17.47426853,165.96,165.9,19.46]
[1747759513988,17.47426853,165.99,165.91,44.06]
[1747759514778,38.56114645,165.98,165.91,44.06]
[1747759515284,21.08687792,165.98,165.92,18.64964886]
[1747759516751,21.08687792,165.98,165.94,26.0]
[1747759519682,6.02482226,165.98,165.94,26.0]
[1747759521088,38.56114645,165.98,165.94,26.0]
[1747759521256,2.4,165.97,165.94,26.0]
[1747759521668,38.56114645,165.98,165.94,26.0]
[1747759522765,17.47426853,165.96,165.91,37.52]
[1747759522967,17.47426853,165.95,165.91,37.52]
[1747759523682,17.47426853,165.93,165.91,19.46]
[1747759524391,19.12206853,165.96,165.91,19.46]
[1747759524597,21.09068995,165.95,165.91,19.46]
[1747759524770,17.47426853,165.94,165.91,19.46]
[1747759524965,17.47426853,165.93,165.91,19.46]
[1747759525183,17.47426853,165.93,165.88,26.0]
[1747759525384,17.47426853,165.93,165.89,26.0]
[1747759525894,27.87987808,165.94,165.89,26.0]
[1747759526605,6.02700096,165.92,165.89,26.0]
[1747759528788,48.97311015,165.93,165.88,18.06]
[1747759529691,21.09323207,165.93,165.88,18.06]
[1747759530587,48.97311015,165.93,165.88,18.06]
[1747759532501,48.97311015,165.93,165.87,26.0]
[1747759532699,27.87987808,165.88,165.82,18.06]
[1747759532890,27.87987808,165.85,165.82,18.06]
[1747759533710,27.87987808,165.87,165.82,18.06]
[1747759534078,27.87987808,165.86,165.82,18.06]
[1747759534278,27.87987808,165.85,165.82,18.06]
[1747759534681,6.02990834,165.84,165.82,18.06]
[1747759536306,33.90978642,165.84,165.82,18.06]
[1747759536885,48.98455728,165.84,165.8,26.0]
[1747759537088,48.98455728,165.84,165.8,44.08]
[1747759537289,27.87987808,165.82,165.76,1.6275]
[1747759537492,79.134099,165.84,165.77,18.08]
[1747759538014,2.4,165.83,165.77,18.08]
[1747759538410,79.134099,165.84,165.77,18.08]
[1747759539211,51.25422092,165.84,165.77,18.08]
[1747759539421,77.25422092,165.84,165.77,18.08]
[1747759540717,105.134099,165.84,165.77,18.08]
[1747759540918,47.1046792,165.84,165.77,100.58]
[1747759541113,74.98455728,165.84,165.77,82.5]
[1747759541314,27.87987808,165.83,165.78,18.08]
[1747759542110,27.87987808,165.82,165.78,18.08]
[1747759542922,79.14337243,165.81,165.74,6.4604]
[1747759543106,27.87987808,165.79,165.75,37.54]
[1747759543811,27.87987808,165.79,165.75,19.46]
[1747759544013,51.26349435,165.81,165.75,19.46]
[1747759544014,27.87987808,165.76,165.75,19.46]
[1747759544211,27.87987808,165.77,165.75,19.46]
[1747759544999,6.03281853,165.76,165.75,19.46]
[1747759546199,21.11486486,165.76,165.73,18.08]
[1747759546519,6.03281853,165.76,165.73,18.08]
[1747759547023,6.03209072,165.78,165.73,18.08]
[1747759547705,8.43209072,165.78,165.73,18.08]
[1747759548514,6.03209072,165.78,165.73,18.08]
[1747759548920,6.03209072,165.78,165.73,22.30369148]
[1747759549227,6.1165,165.84,165.76,26.0]
[1747759549404,17.45970599,165.83,165.76,26.0]
[1747759549603,17.45970599,165.83,165.77,19.46]
[1747759549805,17.45970599,165.83,165.78,18.08]
[1747759550829,6.03063562,165.82,165.78,18.08]
[1747759551216,21.10722469,165.82,165.78,18.08]
[1747759552638,2.4,165.81,165.78,18.08]
[1747759552821,21.10722469,165.82,165.78,18.08]
[1747759554736,17.45970599,165.81,165.78,18.08]
[1747759555414,6.03136308,165.8,165.78,18.08]
[1747759557515,21.10849767,165.81,165.78,18.08]
[1747759559324,6.03099933,165.81,165.78,18.08]
[1747759559628,15.07533045,165.84,165.78,18.08]
[1747759559829,32.53503644,165.84,165.78,18.08]
[1747759561438,38.56494478,165.84,165.78,18.08]
[1747759561745,17.45970599,165.82,165.78,18.08]
[1747759562047,17.45970599,165.82,165.77,19.46]
[1747759562215,17.45970599,165.81,165.77,19.46]
[1747759562422,17.45970599,165.8,165.77,19.46]
[1747759562719,0.14216157,165.82,165.77,19.46]
[1747759562720,17.45970599,165.79,165.77,19.46]
[1747759562920,17.45970599,165.78,165.74,18.08]
[1747759563139,17.45970599,165.76,165.68,18.64964886]
[1747759563448,21.11613875,165.75,165.7,19.46]
[1747759563634,6.0331825,165.75,165.71,18.64964886]
[1747759564439,6.0324546,165.77,165.72,6.6447]
[1747759564645,6.03136308,165.8,165.73,20.27104886]
[1747759565547,38.56514885,165.84,165.73,24.49458701]
[1747759566250,38.56514885,165.84,165.77,18.64964886]
[1747759566251,21.10544286,165.84,165.77,18.64964886]
[1747759566425,21.10544286,165.84,165.78,37.54]
[1747759567326,17.45970599,165.98,165.86,18.64964886]
[1747759567526,17.45970599,165.93,165.87,37.54]
[1747759567730,17.45970599,165.92,165.87,37.54]
[1747759568452,17.45970599,165.91,165.85,37.54]
[1747759568656,43.45970599,165.93,165.85,37.54]
[1747759568855,26.0,165.93,165.85,37.54]
[1747759569327,17.45970599,165.92,165.85,37.54]
[1747759569735,21.09577481,165.91,165.85,37.54]
[1747759571861,15.06841058,165.91,165.85,37.54]
[1747759572729,32.52811657,165.91,165.85,19.46]
[1747759572938,2.4,165.9,165.85,37.54]
[1747759573145,32.52811657,165.91,165.85,37.54]
[1747759574123,68.69230196,165.91,165.85,37.54]
[1747759574322,68.69230196,165.91,165.85,19.46]
[1747759574858,68.69230196,165.91,165.82,20.23814886]
[1747759574859,17.45970599,165.89,165.82,1.5885]
[1747759575057,17.45970599,165.88,165.83,18.08]
[1747759575564,51.23259597,165.91,165.83,18.08]
[1747759575742,68.69230196,165.91,165.83,18.08]
[1747759576353,17.45970599,165.89,165.83,18.08]
[1747759577072,68.69230196,165.91,165.83,18.08]
[1747759577370,51.23259597,165.91,165.83,18.08]
[1747759577755,21.09577481,165.91,165.84,18.64964886]
[1747759578067,21.09831815,165.89,165.83,18.08]
[1747759579872,21.09831815,165.89,165.84,18.08]
[1747759580375,47.09831815,165.89,165.84,18.08]
[1747759580886,26.0,165.86,165.84,18.08]
[1747759581468,26.0,165.86,165.82,19.46]
[1747759581667,26.0,165.86,165.83,18.08]
[1747759581866,26.0,165.88,165.83,18.08]
[1747759582062,26.0,165.88,165.84,18.64964886]
[1747759582484,6.02881774,165.87,165.84,18.64964886]
[1747759583786,6.0284543,165.88,165.84,18.64964886]
[1747759589103,38.55929605,165.88,165.81,225.66]
[1747759589276,38.55929605,165.88,165.82,37.54]
[1747759589277,17.45970599,165.87,165.82,37.54]
[1747759590231,17.45970599,165.87,165.82,19.46]
[1747759590401,17.45970599,165.83,165.76,18.64964886]
[1747759590594,38.56693068,165.82,165.77,37.54]
[1747759590797,17.45970599,165.81,165.77,37.54]
[1747759590998,17.45970599,165.81,165.71,15.01539783]
[1747759590999,17.45970599,165.79,165.73,18.64964886]
[1747759591299,17.45970599,165.79,165.76,18.08]
[1747759592321,6.03209072,165.78,165.76,18.08]
[1747759592709,17.45970599,165.77,165.74,19.46]
[1747759592908,21.11231752,165.78,165.74,19.46]
[1747759595398,38.57202351,165.78,165.74,19.46]
[1747759595599,2.4,165.77,165.74,19.46]
[1747759595914,38.57202351,165.78,165.74,19.46]
[1747759597026,17.45970599,165.77,165.74,19.46]
[1747759597438,21.11231752,165.78,165.74,19.46]
[1747759597615,38.57202351,165.78,165.74,19.46]
[1747759599241,21.11231752,165.78,165.74,19.46]
[1747759600835,6.03209072,165.78,165.74,19.46]
[1747759601015,21.10908203,165.81,165.74,19.46]
[1747759601632,2.4,165.8,165.74,19.46]
[1747759601838,2.4,165.8,165.75,44.64964886]
[1747759602136,21.10908203,165.81,165.75,44.64964886]
[1747759603035,15.0780827,165.81,165.75,44.64964886]
[1747759603334,15.0780827,165.81,165.75,26.0]
[1747759603534,17.45970599,165.8,165.76,18.08]
[1747759603842,32.53778869,165.81,165.75,18.08]
[1747759604942,21.10908203,165.81,165.75,18.08]
[1747759606844,21.11104408,165.79,165.75,18.08]
[1747759607946,6.03172688,165.79,165.75,36.72964886]
[1747759608628,6.03172688,165.79,165.78,26.0]
[1747759609149,15.07730257,165.82,165.78,26.0]
[1747759610444,32.53700856,165.82,165.75,18.08]
[1747759610623,17.45970599,165.8,165.76,44.08]
[1747759610823,17.45970599,165.81,165.76,44.08]
[1747759611036,21.1097708,165.8,165.76,44.08]
[1747759611730,6.03136308,165.8,165.76,44.08]
[1747759613045,6.03063562,165.82,165.76,44.08]
[1747759613632,2.4,165.81,165.76,44.08]
[1747759614346,6.03063562,165.82,165.76,44.08]
[1747759615454,21.10679835,165.83,165.76,44.08]
[1747759616065,17.45970599,165.77,165.72,18.08]
[1747759616229,1.6229,165.81,165.73,26.0]
[1747759616431,19.08260599,165.81,165.75,26.0]
[1747759616732,17.45970599,165.8,165.75,26.0]
[1747759617554,21.11104408,165.79,165.75,26.0]
[1747759619055,21.04427695,165.79,165.75,26.0]
[1747759619754,5.96495975,165.79,165.76,19.46]
[1747759620330,6.03099933,165.81,165.77,20.27144886]
[1747759620535,6.03099933,165.81,165.78,18.08]
[1747759620949,15.07461216,165.85,165.78,18.08]
[1747759620950,6.02990834,165.84,165.79,44.64964886]
[1747759621157,6.02990834,165.84,165.82,26.0]
[1747759621458,6.02990834,165.84,165.82,45.46]
[1747759621753,6.02881774,165.87,165.82,45.46]
[1747759622340,6.02881774,165.87,165.83,18.64964886]
[1747759622551,6.02881774,165.87,165.84,18.08]
[1747759623561,38.55420936,165.92,165.84,18.08]
[1747759623736,17.45970599,165.91,165.84,18.08]
[1747759624143,1.8,165.91,165.84,18.08]
[1747759625760,21.0970464,165.9,165.84,18.08]
[1747759625956,17.45970599,165.88,165.79,26.0]
[1747759626141,17.45970599,165.88,165.84,26.0]
[1747759626343,17.45970599,165.89,165.84,26.0]
[1747759626750,17.45970599,165.88,165.84,26.0]
[1747759627863,51.23568413,165.9,165.84,26.0]
[1747759628470,21.0970464,165.9,165.84,26.0]
[1747759629656,68.69539012,165.9,165.84,26.0]
[1747759630165,51.23568413,165.9,165.84,26.0]
[1747759630663,68.69539012,165.9,165.84,26.0]
[1747759631369,17.45970599,165.89,165.84,26.0]
[1747759631757,68.69539012,165.9,165.84,26.0]
[1747759631951,68.69539012,165.9,165.84,44.08]
[1747759632369,17.45970599,165.88,165.84,44.08]
[1747759632760,17.45970599,165.89,165.84,26.0]
[1747759633056,68.69539012,165.9,165.84,26.0]
[1747759634164,17.45970599,165.89,165.84,26.0]
[1747759634469,68.69539012,165.9,165.84,26.0]
[1747759636871,21.0970464,165.9,165.84,26.0]
[1747759637370,6.02772754,165.9,165.86,26.0]
[1747759637586,15.06694847,165.93,165.89,26.0]
[1747759637753,6.02700096,165.92,165.89,45.46]
[1747759638272,6.02700096,165.92,165.9,18.64964886]
[1747759638456,6.02591141,165.95,165.9,18.64964886]
[1747759638851,15.06462855,165.96,165.9,18.64964886]
[1747759640580,2.4,165.95,165.9,18.64964886]
[1747759640779,2.4,165.95,165.93,26.0]
[1747759641000,6.02627455,165.94,165.93,26.0]
[1747759641284,6.02627455,165.94,165.93,44.08]
[1747759642609,21.08560756,165.99,165.93,44.08]
[1747759643887,38.54531355,165.99,165.93,44.08]
[1747759644795,15.06114826,165.99,165.93,44.08]
[1747759647396,6.02373351,166.01,165.97,26.0]
[1747759647599,6.02373351,166.01,165.98,18.06]
[1747759648106,21.08306728,166.01,165.98,18.06]
[1747759649199,15.05933377,166.01,165.98,18.06]
[1747759651094,21.08306728,166.01,165.98,18.06]
[1747759652808,15.05933377,166.01,165.98,18.06]
[1747759653112,32.51903976,166.01,165.97,26.0]
[1747759653292,17.45970599,166.0,165.98,18.06]
[1747759653783,17.45970599,165.99,165.96,37.5]
[1747759654287,17.45970599,166.0,165.96,37.5]
[1747759654993,15.05933377,166.01,165.96,37.5]
[1747759657798,15.05933377,166.01,165.96,120.0]
[1747759658712,6.02300789,166.03,165.99,26.0]
[1747759658890,21.08052761,166.03,165.99,26.0]
[1747759660200,15.05751972,166.03,165.99,26.0]
[1747759664919,17.45970599,166.02,165.95,101.94]
[1747759665096,17.45970599,165.99,165.95,19.44]
[1747759665297,17.45970599,165.98,165.95,19.44]
[1747759665504,17.45970599,165.96,165.92,18.06]
[1747759665801,17.45970599,165.97,165.92,18.06]
[1747759666236,17.45970599,165.97,165.93,26.0]